Cogmind - Beta 15 @@@ ROGUE MODE // 2025.07.09 @ 21:44:17 Player: Skysub Result: Destroyed by Piercing Trap Performance ------------- Evolutions (0) 0 Regions Visited (2) 400 Robots Destroyed (34) 170 Value Destroyed (774) 774 Prototype IDs (0) 0 Alien Tech Used (0) 0 Bonus (0) 0 TOTAL SCORE: 1344 Bonus ------- None Cogmind --------- Core Integrity 0/250 Matter 300/300 Energy 198/200 System Corruption 0% Temperature Cool (0) Movement Rolling (105) Location -10/Subcaves Parts ------- > --- POWER (1) -------- Subdweller Power Source > --- PROPULSION (2) --- Compact Wheel Subdweller Monowheel > --- UTILITY (2) ------ Heat Sink Medium Storage Unit > --- WEAPON (2) ------- Subdweller Beam Cannon > --- INVENTORY (10) --- Subdweller Monowheel Subdweller Monowheel Small Storage Unit Subdweller Optics Subdweller Optics Makeshift System Shield Medium Laser Subdweller Machine Gun Mining Laser Peak State ------------ > --- POWER ------------ Subdweller Power Source > --- PROPULSION ------- Compact Wheel Subdweller Monowheel > --- UTILITY ---------- Heat Sink Medium Storage Unit > --- WEAPON ----------- Subdweller Beam Cannon Light Assault Rifle > --- INVENTORY -------- Subdweller Monowheel Subdweller Monowheel Small Storage Unit Subdweller Optics Subdweller Optics Makeshift System Shield Medium Laser Subdweller Machine Gun Mining Laser [Rating: 11] Favorites ----------- Power Ion Engine Engine Ion Engine Propulsion Light Treads Treads Light Treads Wheel Compact Wheel Utility Medium Storage Unit Device Heat Sink Storage Medium Storage Unit Protection Light Armor Plating Weapon Light Assault Rifle Energy Gun Medium Laser Energy Cannon Subdweller Beam Cannon Ballistic Gun Light Assault Rifle Special Weapon Mining Laser Build | -11 -10 -10 ------- Run | Yrd Mat Sub Slots Evolved . | . . . Power . | . . . Propulsion . | . . . Utility . | . . . Weapon . | . . . Parts Attached 17 | 6 5 6 Power 3 | 1 1 1 Engine 3 | 1 1 1 Core . | . . . Reactor . | . . . Propulsion 4 | 2 . 2 Treads 2 | 2 . . Leg . | . . . Wheel 2 | . . 2 Hover . | . . . Flight . | . . . Utility 4 | 1 3 . Device 1 | . 1 . Storage 2 | 1 1 . Processor . | . . . Hackware . | . . . Protection 1 | . 1 . Artifact . | . . . Weapon 6 | 2 1 3 Energy Gun 2 | 2 . . Energy Cannon 1 | . . 1 Ballistic Gun 2 | . 1 1 Ballistic Cannon . | . . . Launcher . | . . . Special Weapon 1 | . . 1 Impact Weapon . | . . . Slashing Weapon . | . . . Piercing Weapon . | . . . Special Melee Weapon . | . . . Unidentified Prototypes . | . . . Parts Lost 8 | . 3 5 Power 2 | . 1 1 Propulsion 2 | . . 2 Utility 1 | . 1 . Weapon 3 | . 1 2 Highest Loss Streak 3 | . 3 2 To Critical Strikes . | . . . Average Backups 5 | 1 4 7 Power . | . . . Propulsion 1 | . 1 2 Utility 1 | . . 2 Weapon 1 | . 1 2 Tool/Special . | . . . Unused Backups 8 | . . 8 Power . | . . . Propulsion 3 | . . 3 Utility 4 | . . 4 Weapon 1 | . . 1 Tool/Special . | . . . Average Slot Usage (%) 93 | . 94 93 Engine 13 | . 12 13 Treads 16 | . 28 8 Wheel 8 | . . 13 Device 8 | . 1 14 Storage 14 | . 14 14 Protection 3 | . 9 . Energy Gun 11 | . 20 4 Energy Cannon 3 | . . 6 Ballistic Gun 11 | . 7 13 Special Weapon 1 | . . 2 Peak Build Rating 11 | 6 7 11 Average Rating 7 | 5 6 8 On Entrance 4 | . 6 7 Naked Turns . | . . . Heaviest Build 25 | 13 21 25 Greatest Support 40 | 40 40 40 Greatest Overweight (x) 1 | . . 1 Average Overweight (x) . | . . . Largest Inventory Capacity 10 | 8 10 10 Average Capacity 9 | 7 9 10 Most Carried 10 | 3 5 10 Average Carried 5 | 1 4 7 Final Capacity 10 | 8 10 10 Final Carried 9 | 3 4 9 Class Distribution -------------------- 74% | Mutant 25% | Scavenger-Mutant Dominant Class ---------------- Mutant | -10/Materials Mutant | -10/Subcaves Resources | -11 -10 -10 ----------- Run | Yrd Mat Sub Matter Collected 418 | 232 95 91 Remotely . | . . . Salvage Created 1198 | 180 682 336 Parts 71 | 12 41 18 Haulers Intercepted . | . . . Recyclers Shooed 1 | . 1 . Parts Field Recycled . | . . . Retrieved Matter . | . . . Parts Self-Destructed 6 | . . 6 Prevented . | . . . Kills | -11 -10 -10 ------- Run | Yrd Mat Sub Combat Hostiles Destroyed 23 | . 17 6 Melee 1 | . 1 . Guns 19 | . 16 3 Cannons 3 | . . 3 Classes Destroyed 9 | 3 4 2 Worker 3 | 2 1 . Builder 2 | . 2 . Tunneler 4 | 4 . . Recycler 1 | 1 . . Watcher 1 | . 1 . Swarmer 5 | . 5 . Grunt 12 | . 12 . Cobbler 1 | . . 1 Subdweller 6 | . . 6 Best Kill Streak 11 | 5 11 2 Combat Bots Only 9 | . 9 2 Max Kills in Single Turn 1 | 1 1 1 Gunslinging . | . . . Exploded . | . . . Melee 1 | . 1 . Uniques/NPCs Destroyed . | . . . Combat | -11 -10 -10 -------- Run | Yrd Mat Sub Hostile Shots Fired 113 | . 85 28 Missed 26 | . 19 7 Hits 87 | . 66 21 Projectile 87 | . 66 21 Damage Taken 1192 | . 689 503 Core 256 | . 120 136 Absorbed by Shields . | . . . Core Remaining (%) 100 | 100 . . Volleys Fired 116 | 18 59 39 Largest 2 | 2 2 2 Hottest 100 | 90 90 100 Shots Fired 217 | 35 110 72 Gun 204 | 35 110 59 Cannon 10 | . . 10 Launcher . | . . . Special 3 | . . 3 Kinetic 70 | . 36 34 Thermal 147 | 35 74 38 Explosive . | . . . Electromagnetic . | . . . Robot Hit Streak 15 | 7 15 12 Robot Miss Streak 5 | 3 5 2 Penetration Max . | . . . Secondary Targets 3 | . 2 1 Max Gunslinging Chain 1 | . 1 1 Shots Hit Robots 146 | 20 79 47 Core Hits 63 | 8 37 18 Critical Kills . | . . . Critical Parts Destroyed . | . . . Critical Strikes 6 | . 2 4 Burn 5 | . 2 3 Destroy 1 | . . 1 Melee Attacks . | . . . Impact . | . . . Slashing . | . . . Piercing . | . . . Sneak Attacks . | . . . Combat Hostiles . | . . . Follow-up Attacks . | . . . Damage Inflicted 1674 | 256 901 517 Guns 1546 | 249 865 432 Cannons 85 | . . 85 Explosions . | . . . Melee . | . . . Ramming 43 | 7 36 . Kinetic 362 | . 178 184 Thermal 1269 | 249 687 333 Explosive . | . . . Electromagnetic . | . . . Impact . | . . . Slashing . | . . . Piercing . | . . . Highest Corruption . | . . . Average Corruption . | . . . Corruption Purged . | . . . Corruption Blocked . | . . . Overload Shots . | . . . Overflow Damage . | . . . Projectiles . | . . . Explosions . | . . . Melee . | . . . Knockbacks 1 | . 1 . Impact 1 | . 1 . Kinetic . | . . . Secondary . | . . . Self-Inflicted Damage . | . . . Shots . | . . . Rammed 11 | 1 10 . Targets Rammed 11 | 1 10 . Kicked . | . . . Crushed . | . . . Highest Temperature 414 | 230 414 12 Average Temperature 116 | 85 131 7 Received Heat Transfer 405 | . 312 93 Effects 5 | . 5 . Energy Bleed 1 | . 1 . Interference 4 | . 4 . Siege Activations . | . . . Martial Activations . | . . . Shielding Activations . | . . . Robots Disrupted . | . . . Combat Hostiles . | . . . Robots Corrupted . | . . . Combat Hostiles . | . . . Parts Fried . | . . . Impact Corruptions . | . . . Robots Melted . | . . . Combat Hostiles . | . . . Parts Melted 6 | . 3 3 Heat Transferred 3749 | 669 2007 1073 Parts Sabotaged . | . . . Parts Stolen . | . . . Parts Stripped . | . . . Power Chain Reactions . | . . . Alert | -11 -10 -10 ------- Run | Yrd Mat Sub Maximum Alert Level 1 | . 1 . Low Security (%) 93 | 100 90 . Level 1 6 | . 9 . Level 2 . | . . . Level 3 . | . . . Level 4 . | . . . Level 5 . | . . . High Security . | . . . Max Security . | . . . Peak Influence 266 | 10 266 . Initial . | . . . Average 57 | 1 78 . Influence Increases 568 | 35 533 . Destroy 0b10 Robot/C 340 | . 340 . Destroy 0b10 Robot/NC 55 | 35 20 . Destroy Leader 62 | . 62 . Successful Hack 21 | . 21 . Select Force Hacks 30 | . 30 . Lose Combat Pursuer 60 | . 60 . Influence Decreases 568 | 35 278 255 Entered New Map 123 | . . 123 Time Decay 385 | 35 238 112 Lost Part 50 | . 30 20 Lost Ally 10 | . 10 . Squads Dispatched 3 | . 3 . Investigation 2 | . 2 . Extermination . | . . . Reinforcement 1 | . 1 . Assault . | . . . Garrison . | . . . Intercept . | . . . Searches Triggered . | . . . Construction Impeded . | . . . Haulers Reinforced . | . . . Active Scanning Responses . | . . . Cargo Convoy Interrupts . | . . . Stealth | -11 -10 -10 --------- Run | Yrd Mat Sub Distress Signals 2 | . 2 . Communications Jammed . | . . . Distress Signals . | . . . Times Spotted 33 | . 27 6 Peak Tracking Total 7 | . 7 2 Tactical Retreats 4 | . 4 . Traps | -11 -10 -10 ------- Run | Yrd Mat Sub Traps Triggered 3 | . 1 2 Indirectly . | . . . Trap Hack Attempts . | . . . Triggered . | . . . Disarmed . | . . . Reprogrammed . | . . . Reused . | . . . Traps Extracted . | . . . Installed . | . . . Triggered . | . . . Machines | -11 -10 -10 ---------- Run | Yrd Mat Sub Machines Disabled . | . . . Max in Single Turn . | . . . Machines Repaired . | . . . Machines Dismantled . | . . . Machines Sabotaged . | . . . Overloaded Fab Kills . | . . . Hacking | -11 -10 -10 --------- Run | Yrd Mat Sub Machines Accessed 3 | . 3 . Terminals 2 | . 2 . Fabricators . | . . . Repair Stations . | . . . Recycling Units 1 | . 1 . Scanalyzers . | . . . Garrison Access . | . . . Total Hacks 10 | . 10 . Successful 7 | . 7 . Failed 3 | . 3 . Catastrophic . | . . . Database Lockouts . | . . . Manual 8 | . 8 . Terminals 7 | . 7 . Fabricators . | . . . Repair Stations . | . . . Recycling Units 3 | . 3 . Scanalyzers . | . . . Garrison Access . | . . . Terminal Hacks 1 | . 1 . Terminal Index 1 | . 1 . Fabricator Hacks . | . . . Repair Station Hacks . | . . . Recycling Unit Hacks 1 | . 1 . Report Inventory 1 | . 1 . Scanalyzer . | . . . Garrison Access Hacks . | . . . Unauthorized Hacks 5 | . 5 . Terminals 4 | . 4 . Assimilate 1 | . 1 . Botnet 1 | . 1 . Skim 2 | . 2 . Fabricators . | . . . Repair Stations . | . . . Recycling Units 1 | . 1 . Tunnel 1 | . 1 . Scanalyzers . | . . . Garrison Access . | . . . Data Cores Recovered . | . . . Used . | . . . Hacking Detections 2 | . 2 . Full Trace Events . | . . . Feedback Events . | . . . Feedback Blocked . | . . . Robot Schematics Acquired . | . . . Robots Built . | . . . Authchips . | . . . Time . | . . . Total Robot Build Rating . | . . . Part Schematics Acquired . | . . . Parts Built . | . . . Authchips . | . . . Time . | . . . Total Part Build Rating . | . . . Parts Repaired . | . . . Time . | . . . Parts Recycled . | . . . Recycled Matter . | . . . Retrieved Matter . | . . . Retrieved Components . | . . . Parts Scanalyzed . | . . . Part Schematics Acquired . | . . . Parts Damaged . | . . . Bothacking | -11 -10 -10 ------------ Run | Yrd Mat Sub Used RIF Installer . | . . . Robots Hacked . | . . . Non-combat . | . . . Combat . | . . . Robot Hacks Applied . | . . . Relay Couplers Released . | . . . Fabnet Peak Effective % . | . . . Robots Rewired . | . . . Allies Hacked . | . . . Hacks Repelled . | . . . Allies | -11 -10 -10 -------- Run | Yrd Mat Sub Total Allies 1 | . 1 . Largest Group 1 | . 1 . Highest-Rated Group 10 | . 10 . Highest-Rated Ally 10 | . 10 . Total Orders . | . . . Ally Attacks . | . . . Total Damage . | . . . Kills . | . . . Allies Corrupted . | . . . Allies Melted . | . . . Intel | -11 -10 -10 ------- Run | Yrd Mat Sub Active Infowar (turns) . | . . . Robot Analysis Total . | . . . Derelict Logs Recovered . | . . . Drone Launches . | . . . Drone Recoveries . | . . . Exploration | -11 -10 -10 ------------- Run | Yrd Mat Sub Turns Passed 1695 | 232 594 869 Spaces Moved 937 | 96 239 602 Core 4 | 4 . . Treads 447 | 92 239 116 Legs . | . . . Wheels 486 | . . 486 Hover . | . . . Flight . | . . . Fastest Speed 50 | 50 160 105 Average Speed 133 | 155 160 119 Slowest Speed 160 | 160 160 160 Overloaded Moves . | . . . Propulsion Burnouts . | . . . Robots Hopped . | . . . Potential Cave-ins 2 | . . 2 Cave-ins Triggered . | . . . Exploration Rate (%) 32 | 5 52 39 Regions Visited 2 Branch Regions 1 Pre-discovered Areas 1 | . 1 . Known Exits Taken . | . . . Unknown Exits Taken 2 | 1 1 . Scrap Searched 3 | . . 3 Spaces Dug 2 | . . 2 Terrain Destroyed 3 | . . 3 Melee . | . . . Projectile 3 | . . 3 AOE . | . . . Terrain Rammed . | . . . Walls Destroyed . | . . . Machines Disabled . | . . . Actions | -11 -10 -10 --------- Run | Yrd Mat Sub Total 1159 | 140 340 679 Wait 59 | 17 24 18 Move 935 | 95 238 602 Hop . | . . . Pick Up 16 | 3 2 11 Fast Attach 9 | 6 3 . Attach 6 | . 2 4 Detach 1 | . 1 . Swap 4 | . 1 3 Drop 2 | . . 2 Fire 116 | 18 59 39 Melee . | . . . Ram . | . . . Kick . | . . . Crush 11 | 1 10 . Escape Stasis . | . . . Rewire . | . . . Trap . | . . . Miscellaneous . | . . . Route ------- -11/Scrapyard -10/Materials -10/Subcaves History --------- Turn | Location | Event 2 | -11/Scrapyard | Discovered new exit (range 16) 233 | -11/Scrapyard | Entered Materials 314 | -10/Materials | Build established: Mutant 710 | -10/Materials | Discovered new exit (range 6) 767 | -10/Materials | Lost 3 parts (1p1u1w) 811 | -10/Materials | Destroyed 9 combat bots 827 | -10/Materials | Entered Subcaves 850 | -10/Subcaves | Curiously followed by a Cobbler waking with a query about "LVR3C" 892 | -10/Subcaves | Core integrity fell below 50% 1074 | -10/Subcaves | Core integrity fell below 20% 1100 | -10/Subcaves | A swath of the cavern ceiling suddenly collapsed 1696 | -10/Subcaves | Destroyed by Piercing Trap Last Messages --------------- 01342_ XK-J5E(u) builds Twisted Machinery. 01352_ XK-J5E(u) tweaks Twisted Machinery. 01396_ Searching scrap... 01396_ Found Sub. Optics. 01396_ Found 39 Matter. 01397_ Acquired 1 matter. 01397_ Searching scrap... 01397_ Found Battle Cannon. 01397_ Found Battle Rifle. 01397_ Found 63 Matter. 01398_ Searching scrap... 01398_ Found Piercing Trap. 01398_ Found 45 Matter. 01470_ SR-486(R) destroyed. 01478_ Acquired 13 matter. 01681_ Triggered Shrapnel Trap. 01681_ An expanding cloud of shrapnel blasts out in all directions. 01681_ Lgt. Assault Rifle destroyed. 01696_ Triggered Piercing Trap. 01696_ Spikes shoot up from the floor. Map ----- +----------------------------------------------------+ | ????????????????????????????## ####???????? | | ?????????????????????????????## % #???????? | | ??????????????????????????????#### ##???????? | | ?????????????????????????????????#### ##????????? | | ?????????????????????????????????????###?????????? | | ?????????????????????????????????????????????????? | | ?????????????????????????????????????????????????? | | ?????????????????????????????????????????????????? | | ?????????????????????????????????????????????????? | | ?????????????????????????????????????????????????? | | ?????????????????????????????????????????????????? | | ?????????????????????????????????????????????????? | | ?????????????????????????????????????????????????? | | ?????????????????????????????????????????????????? | | ?????????????????????????????????????????????????? | | ?????????????????????????????????????????????????? | | ?????????????????????????????????????????????????? | | ???????????????????????????????????????????????### | | ???????????????????????????????????????????????# | | ???????????????????????????????????????????????# | | ??????????????????????????????????????????????## | | ???????????????????????#####??##??????????????# | | ???????????????????????# ### #??????????????# | | ???????????????????????## #??????????????# | | ???????????????????????## #??????????????# | | ?????????????????????### @ #??????????????# | | ?????????????????????# ##?????????????## | | ?????????????????????# #?????????????# | | ?????????????????????## ## #?????????????## | | ?????????????????????## ##?# ##?????????????# | | ????????????????????## #### #??????????????# | | ????????????????????# "" ####??????????????## | | ????????????????????# """#?????????????????### | | ????????????????????# "####????????????????? | | ????????????????????# ^ ###???????#######? | | ???????????????????# #;; #?????## ## | | ???????????????????# ##; "## ##????## # | | ???????????????????## ?### #### ####??# # | | ????????????????????##???# ##?## #### # | | ?????????????????????????# ## ## " | | ????????????????????????## ## " | | ????????????????????????# " | | ????????????????????????# ## " ## | | ????????????????????????##?### " ### | | ?????????????????????????????# ##?# | | ?????????????????????????????# #??? | | ????????????????????????????# ## #??? | | ????????????????????????? ## ##??? | | ????????????????????????? ### #???# | | ????????????????????????## ###?# ##### | +----------------------------------------------------+ Best States ------------- Heat Dissipation 35 Energy Generation 15 Energy Capacity 250 Matter Stores 300 Matter Capacity 300 Sight Range 16 Terrain Scan Density 10 Armor Coverage 150 Evasion (%) 40 Recoil Reduction 2 Item Schematics ----------------- None Robot Schematics ------------------ None Fabricated ------------ Nothing Repaired ---------- Nothing Alien Tech Used ----------------- None Achievements -------------- None Challenges ------------ None Game ------ Seed LightningPoweredHumpback Manual? 0 Play Time 00:11:21 Cumulative 150.3 hours Start 2025.07.09 @ 21:34:37 End 2025.07.09 @ 21:44:17 Sessions 1 Manual Loads 0 Difficulty Rogue Special Mode None Game No. 169 Rogue 169 Adventurer 0 Explorer 0 Win Type - Total 3 Types 1/0/0/1/0/0/0/0/0/1 Lore% 65 Gallery% 61 Achievement% 53 Wizard Run 0 Options --------- Layout 1 ASCII 0 Keyboard 1 Movement Numpad Keybinds 0 Fullscreen 1 Font 32/SmallcapsGlow Map View 77x35 Zoom Use 0% Tactical HUD 1 Map Filters NONE Filters NONE Steam 1 RUN: 5cd9168f-d367-451d-9e96-9ffa1eb5aea6